Cogmind - Beta 16.1 @@@ ROGUE MODE // 2026.04.02 @ 01:20:38 Player: daxter767676 Result: Destroyed by H-77 Assassin with Coil Gun Performance ------------- Evolutions (7) 3500 Regions Visited (14) 2800 Robots Destroyed (49) 245 Value Destroyed (1837) 1837 Prototype IDs (13) 260 Alien Tech Used (0) 0 Bonus (4032) 4032 TOTAL SCORE: 12674 Bonus ------- High Alert Combat Kills 41 Follower Combat Kills 2191 Entered DSFs 500 Network Hubs Disabled 200 Registered with UFD 300 Met Optimus in HQ 500 Built Enhanced Grunts 300 Cogmind --------- Core Integrity 0/1300 Matter 124/300 Energy 99/100 System Corruption 5% Temperature Cool (0) Movement Core (50) Location -3/Research Parts ------- > --- POWER (2) -------- (None) > --- PROPULSION (6) --- (None) > --- UTILITY (9) ------ (None) > --- WEAPON (4) ------- Powered Hammer > --- INVENTORY (5) ---- Heavy Antimatter Reactor Antigrav System Long-range Terrain Scanner Enhanced Hardcell Cannon Enhanced Hardcell Cannon Peak State ------------ > --- POWER ------------ Particle Reactor > --- PROPULSION ------- Impulse Thruster Impulse Thruster Q-thruster Q-thruster Q-thruster Q-thruster > --- UTILITY ---------- Experimental Power Amplifier Advanced Heat Sink Quantum Capacitor Jamming Amplifier Graphene Brace Improved Hacking Suite Improved System Guard Long-range Tractor Beam > --- WEAPON ----------- Quantum Rifle Chainsword Chainsword Chainsword > --- INVENTORY -------- Heavy Antimatter Reactor Antigrav System Advanced Heat Sink Enhanced Hardcell Cannon Enhanced Hardcell Cannon [Rating: 135] Favorites ----------- Power Improved Ion Engine Engine Improved Ion Engine Power Core Fusion Compressor Reactor Quantum Reactor Propulsion Armored Wheel Treads Light Treads Leg Aluminum Leg Wheel Armored Wheel Hover Unit Antigrav System Flight Unit Q-thruster Utility Large Storage Unit Device Heat Sink Storage Large Storage Unit Processor Visual Processing Unit Hackware Improved Hacking Suite Protection Improved Weapon Shielding Weapon Companion Sword Energy Gun Quantum Rifle Energy Cannon Beam Cannon Ballistic Gun Assault Rifle Ballistic Cannon Improved Light Cannon Launcher Long-range Missile Launcher Impact Weapon Maul Slashing Weapon Companion Sword Build | -11 -10 -10 -9 -6 -6 -6 -6 -6 -5 -5 -4 -4 -4 -3 ------- Run | Yrd Mat Sub Scr Fac Ext Cet Arc Hub Fac DSF Fac Was Fac Res Slots Evolved 14 | . . . . 8 . . . . 2 . 2 . . 2 Power 1 | . . . . 1 . . . . . . . . . . Propulsion 4 | . . . . 2 . . . . 2 . . . . . Utility 7 | . . . . 5 . . . . . . 1 . . 1 Weapon 2 | . . . . . . . . . . . 1 . . 1 Parts Attached 120 | . 12 1 4 15 27 4 . 4 . 9 5 . 22 17 Power 16 | . 2 . 1 1 6 1 . . . 1 . . 2 2 Engine 7 | . 1 . 1 1 4 . . . . . . . . . Core 4 | . 1 . . . 1 . . . . 1 . . 1 . Reactor 5 | . . . . . 1 1 . . . . . . 1 2 Propulsion 36 | . 5 . . 3 8 1 . 2 . 4 1 . 6 6 Treads 11 | . . . . . 5 1 . 2 . 1 . . 2 . Leg . | . . . . . . . . . . . . . . . Wheel 13 | . 5 . . 3 3 . . . . . . . 2 . Hover 5 | . . . . . . . . . . 3 . . 2 . Flight 7 | . . . . . . . . . . . 1 . . 6 Utility 49 | . 2 1 2 11 10 2 . . . 3 4 . 7 7 Device 20 | . 1 . . 6 2 . . . . 1 3 . 2 5 Storage 3 | . 1 . 2 . . . . . . . . . . . Processor 12 | . . 1 . 2 2 . . . . 1 . . 4 2 Hackware 3 | . . . . . 1 . . . . . 1 . 1 . Protection 11 | . . . . 3 5 2 . . . 1 . . . . Artifact . | . . . . . . . . . . . . . . . Weapon 19 | . 3 . 1 . 3 . . 2 . 1 . . 7 2 Energy Gun 4 | . . . . . 1 . . 1 . . . . 1 1 Energy Cannon 1 | . 1 . . . . . . . . . . . . . Ballistic Gun 1 | . . . . . . . . . . 1 . . . . Ballistic Cannon 1 | . 1 . . . . . . . . . . . . . Launcher 1 | . . . . . . . . 1 . . . . . . Special Weapon . | . . . . . . . . . . . . . . . Impact Weapon 2 | . 1 . . . . . . . . . . . . 1 Slashing Weapon 9 | . . . 1 . 2 . . . . . . . 6 . Piercing Weapon . | . . . . . . . . . . . . . . . Special Melee Weapon . | . . . . . . . . . . . . . . . Unidentified Prototypes 7 | . . . 1 . 1 2 . . . . 1 . 1 1 Parts Lost 69 | . 2 . . 1 13 3 . 3 . 14 . . 15 18 Power 10 | . 1 . . 1 4 . . 1 . 1 . . . 2 Propulsion 26 | . 1 . . . 7 2 . 1 . 3 . . 4 8 Utility 24 | . . . . . 2 1 . 1 . 7 . . 8 5 Weapon 9 | . . . . . . . . . . 3 . . 3 3 Highest Loss Streak 13 | . 2 . . 1 7 3 . 2 . 12 . . 6 13 To Critical Strikes . | . . . . . . . . . . . . . . . Average Backups 12 | . 9 10 13 14 14 15 15 15 15 13 4 5 2 4 Power 1 | . 1 1 1 1 . . . . . . . 1 1 1 Propulsion . | . 3 2 2 . . . . . . . . . . . Utility 6 | . 2 5 6 7 9 10 10 10 10 9 3 3 . . Weapon 3 | . 2 2 2 4 4 5 5 5 5 3 1 1 . 1 Tool/Special . | . . . . . . . . . . . . . . . Unused Backups 21 | . 9 . 2 1 . 1 . . . 4 . 1 . 3 Power 3 | . 3 . . . . . . . . . . . . . Propulsion . | . . . . . . . . . . . . . . . Utility 11 | . 3 . 2 . . 1 . . . 4 . . . 1 Weapon 7 | . 3 . . 1 . . . . . . . 1 . 2 Tool/Special . | . . . . . . . . . . . . . . . Average Slot Usage (%) 85 | . 95 100 95 84 92 92 93 89 70 48 29 42 48 65 Engine 7 | . 10 14 14 5 8 1 . . . . . . . . Reactor 1 | . . . . . . 11 13 10 5 1 . . . 3 Treads 5 | . . . . . 14 19 20 19 17 2 5 5 6 . Leg 1 | . 12 . . . . . . . . . . . . . Wheel 14 | . 14 28 28 25 8 . . . . . . . . 2 Flight 1 | . . . . . . . . . . . 3 5 3 13 Device 6 | . 10 . . 18 3 . . . . 2 7 15 12 14 Storage 7 | . 14 14 14 6 6 6 6 6 5 4 . . . . Processor 14 | . . 14 14 19 20 20 20 20 17 12 5 5 14 5 Protection 5 | . . . . 1 14 18 20 19 11 5 . . . . Ballistic Gun 1 | . 9 . . . . . . . . . 5 5 1 . Ballistic Cannon 3 | . 4 14 10 . . . . . . . . . . . Impact Weapon 3 | . 4 14 10 . . . . . . . . . . . Slashing Weapon 6 | . . . 3 6 10 13 13 11 5 4 . . 1 13 Peak Build Rating 135 | . 12 13 20 50 62 92 92 92 82 92 46 46 76 135 Average Rating 42 | . 9 13 15 43 48 83 92 89 82 58 32 45 52 87 On Entrance 45 | 6 6 12 13 18 49 62 92 92 82 82 17 46 46 57 Avg Prop Armor Cover (%) 13 | . 8 . . 6 14 . . . . 7 16 14 26 10 Naked Turns 3 | . . . . . . . . . . . . . . 3 Heaviest Build 76 | 14 23 22 34 42 55 76 76 76 62 60 25 11 16 46 Greatest Support 128 | 20 28 24 24 48 88 128 128 128 120 120 23 13 22 46 Greatest Overweight (x) 13 | . 2 . 1 . 11 1 . . . 13 1 . 2 2 Average Overweight (x) . | . . . . . . . . . . . . . . . Largest Inventory Capacity 15 | . 10 10 15 15 15 15 15 15 15 15 5 5 5 5 Average Capacity 12 | . 9 10 14 15 15 15 15 15 15 14 5 5 5 5 Most Carried 15 | . 10 10 15 15 15 15 15 15 15 15 5 5 5 5 Average Carried 12 | . 9 10 13 14 14 15 15 15 15 13 4 4 3 4 Final Capacity 15 | 8 10 10 15 15 15 15 15 15 15 5 5 5 5 5 Final Carried 15 | 6 10 10 15 15 15 15 15 15 15 4 5 5 5 5 Class Distribution -------------------- 49% | Mutant 23% | Scavenger-Mutant 15% | Assassin 8% | Scavenger-Assassin Dominant Class ---------------- Mutant | -10/Materials Mutant | -10/Subcaves Mutant | -9/Scraptown Assassin | -6/Factory Scavenger-Mutant | -6/Extension Scavenger-Mutant | -6/Cetus Scavenger-Mutant | -6/Archives Scavenger-Mutant | -6/Hub_04(d) Scavenger-Mutant | -5/Factory Scout | -5/DSF Mutant | -4/Factory Mutant | -4/Waste Mutant | -4/Factory Mutant | -3/Research Resources | -11 -10 -10 -9 -6 -6 -6 -6 -6 -5 -5 -4 -4 -4 -3 ----------- Run | Yrd Mat Sub Scr Fac Ext Cet Arc Hub Fac DSF Fac Was Fac Res Matter Collected 1531 | 183 234 . 30 185 367 40 8 57 . 83 . . 146 198 Remotely 201 | . . . . . . . . . . . . . 25 176 Salvage Created 2588 | . 530 . . 278 832 . 30 250 . 107 . . 202 359 Parts 117 | . 28 . . 14 22 . 3 15 . 5 . . 12 18 Haulers Intercepted 2 | . 2 . . . . . . . . . . . . . Recyclers Shooed . | . . . . . . . . . . . . . . . Parts Field Recycled . | . . . . . . . . . . . . . . . Retrieved Matter . | . . . . . . . . . . . . . . . Parts Self-Destructed . | . . . . . . . . . . . . . . . Prevented . | . . . . . . . . . . . . . . . Parts Restored . | . . . . . . . . . . . . . . . Kills | -11 -10 -10 -9 -6 -6 -6 -6 -6 -5 -5 -4 -4 -4 -3 ------- Run | Yrd Mat Sub Scr Fac Ext Cet Arc Hub Fac DSF Fac Was Fac Res Combat Hostiles Destroyed 32 | . 10 . . 2 8 . . 3 . 2 . . 3 4 Melee 19 | . . . . 2 8 . . 1 . 2 . . 2 4 Guns 5 | . 4 . . . . . . . . . . . 1 . Cannons 6 | . 6 . . . . . . . . . . . . . AOE 2 | . . . . . . . . 2 . . . . . . Classes Destroyed 14 | . 7 . . 2 . . . 2 . 2 . . 1 . Worker 4 | . 1 . . 1 . . . . . . . . 1 1 Builder 1 | . . . . . . . . 1 . . . . . . Hauler 2 | . 2 . . . . . . . . . . . . . Recycler 5 | . 1 . . 1 3 . . . . . . . . . Operator 2 | . 1 . . . . . 1 . . . . . . . Watcher 2 | . 1 . . 1 . . . . . . . . . . Swarmer 4 | . 3 . . . 1 . . . . . . . . . Cutter 1 | . . . . . . . . . . 1 . . . . Grunt 12 | . 7 . . . 3 . . 2 . . . . . . Brawler 1 | . . . . . . . . . . 1 . . . . Protector 1 | . . . . . . . . 1 . . . . . . Sentry 9 | . . . . 1 4 . . . . . . . 1 3 Hunter 1 | . . . . 1 . . . . . . . . . . Programmer 3 | . . . . . . . . . . . . . 2 1 Enhanced Grunt 1 | . . . . . . . . 1 . . . . . . Best Kill Streak 4 | . 4 . . 2 2 . 1 2 . 1 . . 1 1 Combat Bots Only 3 | . 3 . . 1 2 . . 1 . 1 . . 1 1 Max Kills in Single Turn 2 | . 1 . . 1 1 . 1 2 . 1 . . 1 1 Gunslinging . | . . . . . . . . . . . . . . . Exploded 1 | . . . . . . . . 1 . . . . . . Melee 1 | . . . . 1 1 . . 1 . 1 . . 1 1 Uniques/NPCs Destroyed . | . . . . . . . . . . . . . . . Combat | -11 -10 -10 -9 -6 -6 -6 -6 -6 -5 -5 -4 -4 -4 -3 -------- Run | Yrd Mat Sub Scr Fac Ext Cet Arc Hub Fac DSF Fac Was Fac Res Hostile Shots Fired 1102 | . 46 . . 73 320 39 3 52 . 215 . 2 187 165 Missed 378 | . 9 . . 17 125 12 3 9 . 81 . 1 62 59 Hits 724 | . 37 . . 56 195 27 . 43 . 134 . 1 125 106 Melee 7 | . . . . . . . . . . 6 . 1 . . Projectile 717 | . 37 . . 56 195 27 . 43 . 128 . . 125 106 AOE 1 | . . . . . . . . . . 1 . . . . Critical Strikes 24 | . 1 . . 2 . 2 . 10 . 2 . . 4 3 Actively Blocked 5 | . . . . . . . . . . . . . 4 1 Damage Taken 12990 | . 377 . . 658 1797 667 . 1738 . 2737 . 54 2399 2563 Core 4149 | . 61 . . 149 292 172 . 215 . 851 . . 1108 1301 Absorbed by Shields 345 | . . . . . 282 63 . . . . . . . . Redirected to Shielding 104 | . . . . . 46 . . 58 . . . . . . Regen/Repaired (Parts) 6 | . 6 . . . . . . . . . . . . . Core Remaining (%) 38 | 100 . . 75 . . . . 2 . 14 . . 3 . Volleys Fired 66 | . 31 . . . 7 . . 11 . 3 . . 14 . Largest 2 | . 2 . . . 1 . . 1 . 1 . . 1 . Hottest 80 | . 80 . . . 63 . . 80 . 43 . . 65 . Shots Fired 94 | . 58 . . . 7 . . 11 . 3 . . 15 . Gun 54 | . 28 . . . 7 . . 3 . 1 . . 15 . Cannon 30 | . 30 . . . . . . . . . . . . . Launcher 10 | . . . . . . . . 8 . 2 . . . . Special . | . . . . . . . . . . . . . . . Kinetic 36 | . 31 . . . . . . . . 1 . . 4 . Thermal 48 | . 27 . . . 7 . . 3 . . . . 11 . Explosive 10 | . . . . . . . . 8 . 2 . . . . Electromagnetic . | . . . . . . . . . . . . . . . Robot Hit Streak 7 | . 4 . . . 5 . . 7 . 5 . . 7 . Robot Miss Streak 4 | . 3 . . . 1 . . 4 . 1 . . 3 . Penetration Max . | . . . . . . . . . . . . . . . Secondary Targets . | . . . . . . . . . . . . . . . Shots Hit Robots 200 | . 30 . . 16 40 9 3 16 . 11 . . 20 55 Core Hits 107 | . 20 . . 7 13 3 2 24 . 11 . . 11 16 Critical Kills . | . . . . . . . . . . . . . . . Critical Parts Destroyed . | . . . . . . . . . . . . . . . Critical Strikes 7 | . 1 . . . . . . . . . . . . 6 Burn 1 | . 1 . . . . . . . . . . . . . Sever 6 | . . . . . . . . . . . . . . 6 Melee Attacks 296 | . 3 . . 40 130 10 3 12 . 10 . . 13 75 Impact 5 | . 3 . . . . . . . . . . . . 2 Slashing 291 | . . . . 40 130 10 3 12 . 10 . . 13 73 Piercing . | . . . . . . . . . . . . . . . Sneak Attacks 12 | . . . . 4 4 . 1 . . . . . 2 1 Combat Hostiles . | . . . . . . . . . . . . . . . Follow-up Attacks 22 | . . . . . 2 3 . 4 . . . . . 13 Damage Inflicted 8105 | . 448 . . 777 1536 335 156 1543 . 607 . . 622 2081 Guns 740 | . 212 . . . 101 . . 56 . 27 . . 344 . Cannons 236 | . 236 . . . . . . . . . . . . . Explosions 1551 | . . . . . . . . 1233 . 318 . . . . Melee 5574 | . . . . 777 1433 335 156 254 . 262 . . 276 2081 Ramming 4 | . . . . . 2 . . . . . . . 2 . Kinetic 358 | . 260 . . . . . . . . 27 . . 71 . Thermal 667 | . 188 . . . 101 . . 105 . . . . 273 . Explosive 908 | . . . . . . . . 590 . 318 . . . . Electromagnetic 594 | . . . . . . . . 594 . . . . . . Impact . | . . . . . . . . . . . . . . . Slashing 5574 | . . . . 777 1433 335 156 254 . 262 . . 276 2081 Piercing . | . . . . . . . . . . . . . . . Highest Corruption 17 | . . . . 1 2 2 2 15 . 13 . 5 17 5 Average Corruption 3 | . . . . 1 1 2 2 4 . 10 . 5 8 2 Corruption Purged 1 | . . . . . . . . . . . . . 1 . Corruption Blocked . | . . . . . . . . . . . . . . . Effects 50 | . . . . . 11 6 6 8 . 2 . . 17 . Message Errors 10 | . . . . . 4 . 1 2 . . . . 3 . Matter Fused 11 | . . . . . 1 . 5 1 . 1 . . 3 . Heat Flow Errors 5 | . . . . . 2 1 . 2 . . . . . . Energy Discharges 4 | . . . . . 3 . . . . . . . 1 . Data Loss (minor) 8 | . . . . . . 3 . 2 . . . . 3 . Data Loss (major) 5 | . . . . . . 1 . 1 . . . . 3 . Misfires 1 | . . . . . . . . . . . . . 1 . Alerts 4 | . . . . . 1 1 . . . . . . 2 . Misdirections 2 | . . . . . . . . . . 1 . . 1 . Overload Shots . | . . . . . . . . . . . . . . . Overflow Damage 332 | . . . . 97 139 . . 2 . 23 . . 71 . Projectiles . | . . . . . . . . . . . . . . . Explosions 15 | . . . . . . . . 2 . 13 . . . . Melee 317 | . . . . 97 139 . . . . 10 . . 71 . Knockbacks . | . . . . . . . . . . . . . . . Impact . | . . . . . . . . . . . . . . . Kinetic . | . . . . . . . . . . . . . . . Secondary . | . . . . . . . . . . . . . . . Self-Inflicted Damage 110 | . . . . . . . . 109 . . . . 1 . Shots 1 | . . . . . . . . 1 . . . . . . Rammed 2 | . . . . . 1 . . . . . . . 1 . Targets Rammed 2 | . . . . . 1 . . . . . . . 1 . Kicked . | . . . . . . . . . . . . . . . Crushed . | . . . . . . . . . . . . . . . Highest Temperature 266 | . 24 . . . 266 117 . 210 . . . . 78 . Average Temperature 62 | . 8 . . . 92 59 . 81 . . . . 46 . Received Heat Transfer 1464 | . 162 . . 78 530 115 . 27 . 162 . . 84 306 Siege Activations . | . . . . . . . . . . . . . . . Martial Activations . | . . . . . . . . . . . . . . . Shielding Activations . | . . . . . . . . . . . . . . . Robots Disrupted 3 | . . . . 1 . . 1 1 . . . . . . Combat Hostiles 2 | . . . . . . . 1 1 . . . . . . Robots Corrupted . | . . . . . . . . . . . . . . . Combat Hostiles . | . . . . . . . . . . . . . . . Parts Fried 2 | . . . . . 2 . . . . . . . . . Impact Corruptions . | . . . . . . . . . . . . . . . Robots Melted . | . . . . . . . . . . . . . . . Combat Hostiles . | . . . . . . . . . . . . . . . Parts Melted 5 | . . . . . 1 . . . . . . . 3 1 Heat Transferred 1311 | . 481 . . . 222 . . 275 . . . . 333 . Parts Sabotaged . | . . . . . . . . . . . . . . . Parts Stolen . | . . . . . . . . . . . . . . . Parts Stripped . | . . . . . . . . . . . . . . . Power Chain Reactions 1 | . . . . . . . . 1 . . . . . . Alert | -11 -10 -10 -9 -6 -6 -6 -6 -6 -5 -5 -4 -4 -4 -3 ------- Run | Yrd Mat Sub Scr Fac Ext Cet Arc Hub Fac DSF Fac Was Fac Res Maximum Alert Level 2 | . . . . . 2 1 1 2 1 1 . . . . Low Security (%) 80 | . 100 . . 100 65 . 39 80 . 80 100 100 100 100 Level 1 15 | . . . . . 25 100 60 . 100 19 . . . . Level 2 3 | . . . . . 9 . . 19 . . . . . . Level 3 . | . . . . . . . . . . . . . . . Level 4 . | . . . . . . . . . . . . . . . Level 5 . | . . . . . . . . . . . . . . . High Security . | . . . . . . . . . . . . . . . Max Security . | . . . . . . . . . . . . . . . Peak Influence 617 | . 161 . . 30 617 361 270 550 259 210 94 10 72 30 Initial 341 | . . . . . . 341 120 59 259 184 94 10 . 23 Average 93 | . 82 . . 2 141 308 201 122 259 187 55 3 17 8 Influence Increases 3987 | . 429 . . 126 1673 240 170 762 5 136 15 . 249 182 Destroy 0b10 Robot/C 1620 | . 200 . . 40 800 140 80 180 . 40 . . 60 80 Destroy 0b10 Robot/NC 120 | . 30 . . 15 40 5 5 15 . . . . 5 5 Destroy Leader 284 | . 46 . . 22 94 10 . 42 . 10 . . 20 40 Allied During Kill 962 | . . . . . 583 81 85 213 . . . . . . Successful Hack 92 | . 30 . . . 35 . . 12 5 . . . 10 . Select Force Hacks 60 | . 60 . . . . . . . . . . . . . Disable Machine 210 | . 15 . . 15 15 . . 150 . . . . . 15 Destroy Structure 264 | . 3 . . 19 46 4 . 150 . 26 . . 4 12 Partial Spotted 15 | . . . . 15 . . . . . . . . . . Lose Combat Pursuer 360 | . 45 . . . 60 . . . . 60 15 . 150 30 Influence Decreases 3964 | . 349 80 . 126 1062 550 301 402 271 220 166 29 204 204 Entered New Map 1079 | . . 39 . . . 270 181 111 271 80 86 19 . 22 Time Decay 1646 | . 319 41 . 121 388 190 120 130 . . 80 10 112 135 Lost Part 376 | . 20 . . 5 32 30 . 30 . 140 . . 72 47 Lost Ally 342 | . 10 . . . 192 60 . 80 . . . . . . Purge Threat 521 | . . . . . 450 . . 51 . . . . 20 . Squads Dispatched 26 | . 2 . . 5 6 1 . 4 . 3 1 . 3 1 Investigation 9 | . 2 . . . 5 1 . 1 . . . . . . Extermination 6 | . . . . 3 . . . . . . . . 2 1 Reinforcement 10 | . . . . 2 1 . . 2 . 3 1 . 1 . Assault 1 | . . . . . . . . 1 . . . . . . Garrison . | . . . . . . . . . . . . . . . Intercept . | . . . . . . . . . . . . . . . Searches Triggered . | . . . . . . . . . . . . . . . Construction Impeded 1 | . . . . . 1 . . . . . . . . . Haulers Reinforced . | . . . . . . . . . . . . . . . Active Scanning Responses . | . . . . . . . . . . . . . . . Cargo Convoy Interrupts . | . . . . . . . . . . . . . . . Stealth | -11 -10 -10 -9 -6 -6 -6 -6 -6 -5 -5 -4 -4 -4 -3 --------- Run | Yrd Mat Sub Scr Fac Ext Cet Arc Hub Fac DSF Fac Was Fac Res Distress Signals 12 | . 5 . . . 2 1 . 2 . . 1 . 1 . Communications Jammed . | . . . . . . . . . . . . . . . Distress Signals . | . . . . . . . . . . . . . . . Times Spotted 148 | . 21 . . 6 42 8 4 16 . 14 2 4 16 15 Peak Tracking Total 10 | . 5 . . 2 5 5 2 5 . 8 4 4 8 10 Tactical Retreats 16 | . 2 . . . 3 . . . . 3 1 . 5 2 Traps | -11 -10 -10 -9 -6 -6 -6 -6 -6 -5 -5 -4 -4 -4 -3 ------- Run | Yrd Mat Sub Scr Fac Ext Cet Arc Hub Fac DSF Fac Was Fac Res Traps Triggered 5 | . . . . . . . . 1 . 2 1 . . 1 Indirectly . | . . . . . . . . . . . . . . . Trap Hack Attempts . | . . . . . . . . . . . . . . . Triggered . | . . . . . . . . . . . . . . . Disarmed . | . . . . . . . . . . . . . . . Reprogrammed . | . . . . . . . . . . . . . . . Reused . | . . . . . . . . . . . . . . . Traps Extracted . | . . . . . . . . . . . . . . . Installed . | . . . . . . . . . . . . . . . Triggered . | . . . . . . . . . . . . . . . Machines | -11 -10 -10 -9 -6 -6 -6 -6 -6 -5 -5 -4 -4 -4 -3 ---------- Run | Yrd Mat Sub Scr Fac Ext Cet Arc Hub Fac DSF Fac Was Fac Res Machines Disabled 16 | . 1 . . 1 3 . . 10 . . . . . 1 Max in Single Turn 4 | . 1 . . 1 . . . 4 . . . . . 1 Network Hub 1 | . . . . . . . . 1 . . . . . . Machines Repaired . | . . . . . . . . . . . . . . . Machines Dismantled . | . . . . . . . . . . . . . . . Machines Sabotaged . | . . . . . . . . . . . . . . . Overloaded Fab Kills . | . . . . . . . . . . . . . . . Hacking | -11 -10 -10 -9 -6 -6 -6 -6 -6 -5 -5 -4 -4 -4 -3 --------- Run | Yrd Mat Sub Scr Fac Ext Cet Arc Hub Fac DSF Fac Was Fac Res Machines Accessed 48 | . 8 1 3 5 17 3 1 5 1 . 1 . 1 2 Terminals 36 | . 5 . . 4 16 3 . 4 1 . 1 . 1 1 Fabricators 1 | . . . . . . . . . . . . . . 1 Repair Stations 1 | . 1 . . . . . . . . . . . . . Recycling Units 3 | . 2 . . . 1 . . . . . . . . . Scanalyzers 1 | . . . . 1 . . . . . . . . . . Garrison Access 1 | . . . . . . . . 1 . . . . . . Total Hacks 156 | . 20 4 19 8 40 10 25 11 2 . 1 . 13 3 Successful 89 | . 13 4 19 2 12 1 25 3 1 . . . 8 1 Failed 67 | . 7 . . 6 28 9 . 8 1 . 1 . 5 2 Catastrophic 18 | . 1 . . 2 7 3 . 4 . . 1 . . . Database Lockouts . | . . . . . . . . . . . . . . . Manual 38 | . 18 . . 4 4 1 . . . . . . 11 . Terminals 96 | . 16 . . 6 36 10 . 10 2 . 1 . 13 2 Fabricators 1 | . . . . . . . . . . . . . . 1 Repair Stations 2 | . 2 . . . . . . . . . . . . . Recycling Units 6 | . 2 . . . 4 . . . . . . . . . Scanalyzers 2 | . . . . 2 . . . . . . . . . . Garrison Access 1 | . . . . . . . . 1 . . . . . . Terminal Hacks 70 | . 1 4 19 1 12 1 25 3 1 . . . 3 . Record 49 | . . 4 18 . . 1 25 1 . . . . . . Open Door 10 | . . . 1 1 8 . . . . . . . . . Open DSF 1 | . . . . . . . . . 1 . . . . . Emergency Access Points 1 | . . . . . . . . 1 . . . . . . Terminal Index 1 | . . . . . . . . . . . . . 1 . Alert Level 1 | . . . . . 1 . . . . . . . . . Unreport Threat 6 | . . . . . 3 . . 1 . . . . 2 . Recall Investigation 1 | . 1 . . . . . . . . . . . . . Fabricator Hacks 1 | . . . . . . . . . . . . . . 1 Build 1 | . . . . . . . . . . . . . . 1 Repair Station Hacks 2 | . 2 . . . . . . . . . . . . . Scan Component 1 | . 1 . . . . . . . . . . . . . Repair 1 | . 1 . . . . . . . . . . . . . Recycling Unit Hacks . | . . . . . . . . . . . . . . . Scanalyzer . | . . . . . . . . . . . . . . . Garrison Access Hacks . | . . . . . . . . . . . . . . . Unauthorized Hacks 16 | . 10 . . 1 . . . . . . . . 5 . Terminals 14 | . 8 . . 1 . . . . . . . . 5 . Track 2 | . 1 . . . . . . . . . . . 1 . Assimilate 3 | . 2 . . . . . . . . . . . 1 . Botnet 2 | . 1 . . . . . . . . . . . 1 . Operators 2 | . 1 . . . . . . . . . . . 1 . Skim 5 | . 3 . . 1 . . . . . . . . 1 . Fabricators . | . . . . . . . . . . . . . . . Repair Stations . | . . . . . . . . . . . . . . . Recycling Units 2 | . 2 . . . . . . . . . . . . . Tunnel 2 | . 2 . . . . . . . . . . . . . Scanalyzers . | . . . . . . . . . . . . . . . Garrison Access . | . . . . . . . . . . . . . . . Data Cores Recovered 2 | . 1 . . . 1 . . . . . . . . . Used 1 | . . . . . 1 . . . . . . . . . Hacking Detections 32 | . 5 . . 4 11 3 . 5 1 . 1 . 1 1 Full Trace Events 7 | . . . . . 5 1 . 1 . . . . . . Feedback Events . | . . . . . . . . . . . . . . . Feedback Blocked . | . . . . . . . . . . . . . . . Robot Schematics Acquired . | . . . . . . . . . . . . . . . Robots Built . | . . . . . . . . . . . . . . . Authchips . | . . . . . . . . . . . . . . . Time . | . . . . . . . . . . . . . . . Total Robot Build Rating . | . . . . . . . . . . . . . . . Part Schematics Acquired . | . . . . . . . . . . . . . . . Parts Built 2 | . . . . . . . . . . . . . . 2 Authchips . | . . . . . . . . . . . . . . . Time 69 | . . . . . . . . . . . . . . 69 Total Part Build Rating 18 | . . . . . . . . . . . . . . 18 Part Studies Acquired . | . . . . . . . . . . . . . . . Parts Repaired 1 | . 1 . . . . . . . . . . . . . Time 26 | . 26 . . . . . . . . . . . . . Parts Recycled . | . . . . . . . . . . . . . . . Recycled Matter . | . . . . . . . . . . . . . . . Retrieved Matter . | . . . . . . . . . . . . . . . Retrieved Components . | . . . . . . . . . . . . . . . Parts Scanalyzed . | . . . . . . . . . . . . . . . Part Schematics Acquired . | . . . . . . . . . . . . . . . Parts Damaged . | . . . . . . . . . . . . . . . Bothacking | -11 -10 -10 -9 -6 -6 -6 -6 -6 -5 -5 -4 -4 -4 -3 ------------ Run | Yrd Mat Sub Scr Fac Ext Cet Arc Hub Fac DSF Fac Was Fac Res Used RIF Installer . | . . . . . . . . . . . . . . . Robots Hacked . | . . . . . . . . . . . . . . . Non-combat . | . . . . . . . . . . . . . . . Combat . | . . . . . . . . . . . . . . . Robot Hacks Applied . | . . . . . . . . . . . . . . . Relay Couplers Released . | . . . . . . . . . . . . . . . Fabnet Peak Effective % . | . . . . . . . . . . . . . . . Robots Rewired 14 | . . . . 1 13 . . . . . . . . . Allies Hacked . | . . . . . . . . . . . . . . . Hacks Repelled . | . . . . . . . . . . . . . . . Allies | -11 -10 -10 -9 -6 -6 -6 -6 -6 -5 -5 -4 -4 -4 -3 -------- Run | Yrd Mat Sub Scr Fac Ext Cet Arc Hub Fac DSF Fac Was Fac Res Total Allies 30 | . 1 . . 1 23 5 . . . . . . . . Largest Group 13 | . 1 . . 1 13 8 7 6 . . . . . . Highest-Rated Group 652 | . 10 . . 17 529 652 652 504 . . . . . . Highest-Rated Ally 159 | . 10 . . 17 159 159 141 96 . . . . . . Initial UFD Resources 29 | . . . . 22 22 22 22 22 24 24 27 27 27 29 Total Orders . | . . . . . . . . . . . . . . . Ally Attacks 357 | . . . . . 213 64 25 55 . . . . . . Total Damage 9341 | . . . . . 5626 1569 923 1223 . . . . . . Kills 62 | . . . . . 39 11 4 8 . . . . . . Allies Corrupted 2 | . . . . . . . . 2 . . . . . . Allies Melted . | . . . . . . . . . . . . . . . Intel | -11 -10 -10 -9 -6 -6 -6 -6 -6 -5 -5 -4 -4 -4 -3 ------- Run | Yrd Mat Sub Scr Fac Ext Cet Arc Hub Fac DSF Fac Was Fac Res Active Infowar (turns) 6761 | . . 149 1882 1267 1624 391 241 388 4 126 139 52 366 132 Optics 6072 | . . 149 1882 1267 1624 391 241 388 4 126 . . . . Sensors 1369 | . . . . 896 328 . . . . 13 . . . 132 IFF 557 | . . . . . . . . . . . 139 52 366 . Terrain 1307 | . . . . 684 623 . . . . . . . . . Structural 572 | . . . . 572 . . . . . . . . . . Robot Analysis Total . | . . . . . . . . . . . . . . . Derelict Logs Recovered . | . . . . . . . . . . . . . . . Drone Launches . | . . . . . . . . . . . . . . . Drone Recoveries . | . . . . . . . . . . . . . . . Exploration | -11 -10 -10 -9 -6 -6 -6 -6 -6 -5 -5 -4 -4 -4 -3 ------------- Run | Yrd Mat Sub Scr Fac Ext Cet Arc Hub Fac DSF Fac Was Fac Res Turns Passed 8296 | . 930 149 1882 1267 1624 391 241 388 4 181 175 52 496 516 Spaces Moved 5821 | 1 589 129 1782 910 630 204 141 207 3 86 114 85 456 484 Core 331 | . . . . . 16 . . . . 5 . . 188 122 Treads 898 | . . . . . 322 204 141 207 3 9 12 . . . Legs 197 | 1 196 . . . . . . . . . . . . . Wheels 3510 | . 393 129 1782 910 292 . . . . . . . 1 3 Hover 202 | . . . . . . . . . . 72 . . 66 64 Flight 683 | . . . . . . . . . . . 102 85 201 295 Fastest Speed 25 | 120 90 90 90 90 90 160 160 160 166 52 60 60 50 25 Average Speed 103 | 120 109 90 104 90 147 168 160 161 166 103 78 60 63 40 Slowest Speed 700 | 120 190 90 105 90 600 240 160 166 166 700 240 60 150 111 Overloaded Moves . | . . . . . . . . . . . . . . . Propulsion Burnouts . | . . . . . . . . . . . . . . . Robots Hopped 1 | . . . . . . . . . . . . . 1 . Potential Cave-ins . | . . . . . . . . . . . . . . . Cave-ins Triggered . | . . . . . . . . . . . . . . . Exploration Rate (%) 49 | 2 89 9 92 21 72 70 99 37 . 90 4 73 17 14 Regions Visited 14 Branch Regions 6 Pre-discovered Areas 5 | . 2 . 3 . . . . . . . . . . . Known Exits Taken 6 | . . . . 1 1 1 1 1 1 . . . . . Unknown Exits Taken 5 | 1 1 1 1 . . . . . . . . . 1 . Scrap Searched 4 | . . . 4 . . . . . . . . . . . Spaces Dug 28 | . 1 . . 20 . . . . . . . . 1 6 Terrain Destroyed 277 | . 2 . . 20 . . . 233 . 14 . . 2 6 Melee 27 | . 1 . . 20 . . . . . . . . . 6 Projectile 3 | . 1 . . . . . . . . . . . 2 . AOE 247 | . . . . . . . . 233 . 14 . . . . Terrain Rammed . | . . . . . . . . . . . . . . . Walls Destroyed . | . . . . . . . . . . . . . . . Machines Disabled . | . . . . . . . . . . . . . . . Actions | -11 -10 -10 -9 -6 -6 -6 -6 -6 -5 -5 -4 -4 -4 -3 --------- Run | Yrd Mat Sub Scr Fac Ext Cet Arc Hub Fac DSF Fac Was Fac Res Total 7601 | . 817 161 1800 1296 1126 243 152 234 2 161 197 86 617 709 Wait 1032 | . 151 32 2 300 196 23 4 2 . 12 77 . 105 128 Move 5806 | . 588 128 1781 909 629 203 140 206 2 85 114 84 453 484 Hop 1 | . . . . . . . . . . . . . 1 . Pick Up 39 | . 13 . 6 6 3 2 . . . 3 . 1 2 3 Fast Attach 79 | . 8 . 2 4 14 2 . 2 . 8 5 . 17 17 Attach 26 | . 2 . . 8 3 . . . . 5 . . 5 3 Detach 18 | . 2 . 1 3 2 . . . . . 1 . 3 6 Swap 38 | . 3 1 2 11 15 2 . 3 . . . . 1 . Drop 62 | . 16 . 6 4 10 4 . 2 . 9 . 1 2 8 Fire 66 | . 31 . . . 7 . . 11 . 3 . . 14 . Melee 270 | . 3 . . 40 126 7 3 8 . 10 . . 13 60 Ram 1 | . . . . . . . . . . . . . 1 . Kick . | . . . . . . . . . . . . . . . Crush 1 | . . . . . 1 . . . . . . . . . Escape Stasis 26 | . . . . . . . . . . 26 . . . . Rewire 136 | . . . . 11 120 . 5 . . . . . . . Trap . | . . . . . . . . . . . . . . . Miscellaneous . | . . . . . . . . . . . . . . . Route ------- -11/Scrapyard -10/Materials (discovered 5 exits: [*Mat x3] / [*Min] / *Sub) -10/Subcaves (discovered 2 exits: [*Mat] / *Scr) -9/Scraptown (discovered 2 exits: *Fac x2) -6/Factory (discovered 4 exits: *Fac / Low x2 / *Ext) -6/Extension (discovered 3 exits: *Fac x2 / *Cet) -6/Cetus -6/Archives (discovered 3 exits: *Fac / *Hub x2) -6/Hub_04(d) (discovered 3 exits: *Fac x3) -5/Factory (discovered 2 exits: Upp / DSF) -5/DSF -4/Factory -4/Waste -4/Factory -3/Research (discovered 1 exit: Res) History --------- Turn | Location | Event 1 | -11/Scrapyard | Discovered new exit (range 0) 1 | -11/Scrapyard | Entered Materials 53 | -10/Materials | Discovered new exit (range 16) 305 | -10/Materials | Build established: Mutant 478 | -10/Materials | Discovered new exit (range 13) 637 | -10/Materials | Discovered new exit (range 5) 674 | -10/Materials | Repaired Heat Sink 727 | -10/Materials | Discovered new exit (range 3) 747 | -10/Materials | Discovered new exit (range 11) 931 | -10/Materials | Entered Subcaves 932 | -10/Subcaves | Approached by a straggling Scientist 1011 | -10/Subcaves | Visited Clippyterm 1014 | -10/Subcaves | Learned Factory fabricator intel 1014 | -10/Subcaves | Learned Research security intel 1019 | -10/Subcaves | Discovered new exit (range 11) 1025 | -10/Subcaves | Shifting Twisted Machinery released Flamer 1044 | -10/Subcaves | Shifting Twisted Machinery released Sub. Machine Gun 1078 | -10/Subcaves | Scientist uncovered a shortcut to Scraptown 1080 | -10/Subcaves | Entered Scraptown 1204 | -9/Scraptown | Heard Great Nut preacher, LISTEN AND RECITE! 1286 | -9/Scraptown | Discovered new exit (range 5) 1379 | -9/Scraptown | Visited Spacefarers 1397 | -9/Scraptown | Visited CPS Storage 1405 | -9/Scraptown | Visited Comm Corps 1466 | -9/Scraptown | Visited IN-MT5's Study 1510 | -9/Scraptown | Visited UFD Registry 1524 | -9/Scraptown | Visited Fellowship of the Rings 1550 | -9/Scraptown | Visited Assassins FH 2088 | -9/Scraptown | Visited Artisan Demo Area 2185 | -9/Scraptown | Registered with UFD as "Steellever" 2225 | -9/Scraptown | Visited Cartography Club 2271 | -9/Scraptown | Found Surveybot 17 Chip 2384 | -9/Scraptown | Learned location of Storage (-9) 2384 | -9/Scraptown | Learned location of Proximity Caves (-3) 2384 | -9/Scraptown | Learned 4 Access zone layouts 2384 | -9/Scraptown | Learned 4 Storage zone layouts 2384 | -9/Scraptown | Learned 12 Proximity Caves zone layouts 2384 | -9/Scraptown | Learned 20 Proximity Caves zone layouts 2384 | -9/Scraptown | Learned 4 Hub_04(d) zone layouts 2384 | -9/Scraptown | Learned location of 1 exit from Research 2384 | -9/Scraptown | Learned location of 3 exits from Lower Caves 2384 | -9/Scraptown | Learned location of 3 exits from Upper Caves 2430 | -9/Scraptown | Visited Sword Containment 2441 | -9/Scraptown | Found Prototype Slashing Weapon 2441 | -9/Scraptown | Identified Companion Sword 2470 | -9/Scraptown | Visited Scrapoid Research Area 2490 | -9/Scraptown | Visited Research Penetration Think Tank 2513 | -9/Scraptown | Visited Infowarlord's Domain 2519 | -9/Scraptown | Found Exp. Terrain Scanner 2678 | -9/Scraptown | Visited Curators Association 2721 | -9/Scraptown | Visited Observation Area 2817 | -9/Scraptown | Visited Chapter 10 2899 | -9/Scraptown | Met Optimus 2899 | -9/Scraptown | Accepted into 0bPrime 2958 | -9/Scraptown | Discovered new exit (range 5) 2962 | -9/Scraptown | Entered Factory 2962 | -6/Factory | Evolved 8 slots: Power x1, Propulsion x2, Utility x5 2963 | -6/Factory | Identified exit to Lower Caves 2964 | -6/Factory | Loaded intel: 6 fabricator locations 3265 | -6/Factory | Build established: Assassin 4098 | -6/Factory | Discovered new exit (range 28) 4119 | -6/Factory | Discovered new exit (range 29) 4174 | -6/Factory | Identified exit to Factory 4228 | -6/Factory | Identified exit to Extension 4229 | -6/Factory | Entered Extension 4340 | -6/Extension | Lost 7 parts (2p4n1u) 4526 | -6/Extension | Rescued A7 4537 | -6/Extension | Rescued a captive Derelict 4726 | -6/Extension | Build established: Scavenger-Mutant 4863 | -6/Extension | Rescued a captive Derelict 4864 | -6/Extension | Rescued a captive Derelict 4998 | -6/Extension | Rescued a captive Derelict 5099 | -6/Extension | Spotted B-75 Beast 5106 | -6/Extension | Rescued a captive Derelict 5109 | -6/Extension | Rescued a captive Derelict 5152 | -6/Extension | Spotted B-75 Beast 5174 | -6/Extension | Allies destroyed B-75 Beast 5195 | -6/Extension | Lost 10 allies 5220 | -6/Extension | Discovered exit to Factory (range 3) 5321 | -6/Extension | Rescued a captive Derelict 5323 | -6/Extension | Rescued a captive Derelict 5376 | -6/Extension | Rescued a captive Derelict 5536 | -6/Extension | Build established: Scavenger-Assassin 5760 | -6/Extension | Discovered new exit (range 14) 5770 | -6/Extension | Disrupted transfer network 5775 | -6/Extension | Discovered exit to Factory (range 15) 5786 | -6/Extension | Core integrity fell below 50% 5820 | -6/Extension | Identified exit to Cetus 5853 | -6/Extension | Entered Cetus 5853 | -6/Cetus | Accompanied by 8 allies (A7) 5858 | -6/Cetus | Acquired a Cetus Manufacturing Module code from A7 5871 | -6/Cetus | Spotted Cetus Guard 5871 | -6/Cetus | Spotted Cetus Guard 5871 | -6/Cetus | Spotted Cetus Guard 5871 | -6/Cetus | Spotted Cetus Guard 5892 | -6/Cetus | Allies destroyed Cetus Guard 5909 | -6/Cetus | Allies destroyed Cetus Guard 5916 | -6/Cetus | Allies destroyed Cetus Guard 5921 | -6/Cetus | Allies destroyed Cetus Guard 5928 | -6/Cetus | Lost 3 parts (2n1u) 5943 | -6/Cetus | Lost 6 allies 6041 | -6/Cetus | Started Cetus Manufacturing Module 6066 | -6/Cetus | Manufactured an Enhanced Grunt 6091 | -6/Cetus | Manufactured an Enhanced Grunt 6096 | -6/Cetus | Build established: Scavenger-Mutant 6116 | -6/Cetus | Manufactured an Enhanced Grunt 6141 | -6/Cetus | Manufactured an Enhanced Grunt 6146 | -6/Cetus | Discovered new exit (range 21) 6166 | -6/Cetus | Manufactured an Enhanced Grunt 6178 | -6/Cetus | Identified exit to Archives 6205 | -6/Cetus | Spotted Cetus Guard 6244 | -6/Cetus | Entered Archives 6244 | -6/Archives | Accompanied by 7 allies (A7) 6293 | -6/Archives | Discovered new exit (range 22) 6299 | -6/Archives | Unable to access archive contents 6314 | -6/Archives | Unable to access archive contents 6320 | -6/Archives | Discovered exit to Factory (range 17) 6330 | -6/Archives | Unable to access archive contents 6336 | -6/Archives | Discovered new exit (range 16) 6346 | -6/Archives | Unable to access archive contents 6370 | -6/Archives | Identified exit to Hub_04(d) 6485 | -6/Archives | Entered Hub_04(d) 6485 | -6/Hub_04(d) | Accompanied by 6 allies 6485 | -6/Hub_04(d) | Discovered exit to Factory (range 11) 6797 | -6/Hub_04(d) | Network Hub disabled 6798 | -6/Hub_04(d) | Core integrity fell below 20% 6808 | -6/Hub_04(d) | Spotted Lightning 6810 | -6/Hub_04(d) | Spotted Lightning 6814 | -6/Hub_04(d) | Spotted Lightning 6822 | -6/Hub_04(d) | System corruption reached 10% 6835 | -6/Hub_04(d) | First assault squad dispatched 6847 | -6/Hub_04(d) | Discovered exit to Factory (range 17) 6848 | -6/Hub_04(d) | Lost 5 allies 6873 | -6/Hub_04(d) | Entered Factory 6873 | -5/Factory | Evolved 2 slots: Propulsion x2 6874 | -5/Factory | Identified exit to Upper Caves 6877 | -5/Factory | Identified exit to DSF 6877 | -5/Factory | Entered DSF 6914 | -5/DSF | Additional patrols routed to DSF 6982 | -5/DSF | Discovered new exit (range 19) 7015 | -5/DSF | System corruption reached 10% 7028 | -5/DSF | Core integrity fell below 50% 7052 | -5/DSF | Core integrity fell below 20% 7058 | -5/DSF | Entered Factory 7058 | -4/Factory | Evolved 2 slots: Utility x1, Weapon x1 7059 | -4/Factory | Identified exit to Armory 7078 | -4/Factory | Lost 12 parts (3n7u2w) 7233 | -4/Factory | Sucked down chute 7233 | -4/Factory | Entered Waste 7248 | -4/Waste | EMP discharged 7262 | -4/Waste | Spotted C-40 Crusher 7264 | -4/Waste | Spotted C-40 Crusher 7268 | -4/Waste | Spotted C-40 Crusher 7268 | -4/Waste | Spotted C-40 Crusher 7275 | -4/Waste | Discovered new exit (range 13) 7285 | -4/Waste | Entered Factory 7330 | -4/Factory | Build established: Mutant 7403 | -4/Factory | Found Quantum Capacitor 7611 | -4/Factory | Lost 5 parts (2n2u1w) 7621 | -4/Factory | Core integrity fell below 50% 7623 | -4/Factory | System corruption reached 10% 7682 | -4/Factory | Lost 6 parts (1n5u) 7684 | -4/Factory | Core integrity fell below 20% 7777 | -4/Factory | Discovered new exit (range 6) 7781 | -4/Factory | Entered Research 7781 | -3/Research | Evolved 2 slots: Utility x1, Weapon x1 7782 | -3/Research | Identified exit to Research 7863 | -3/Research | Fabricated Enh. Hardcell Cannon (x2) 8090 | -3/Research | Spotted B-86 Titan 8221 | -3/Research | Core integrity fell below 50% 8250 | -3/Research | Lost 13 parts (1p6n4u2w) 8274 | -3/Research | Core integrity fell below 20% 8297 | -3/Research | Destroyed by H-77 Assassin with Coil Gun Last Messages --------------- 08262_ Triggered Blade Trap. 08262_ Massive razor-sharp blades shoot up from within the floor. 08262_ Chainsword severed. 08262_ Adv. Signal Interpreter severed. 08262_ Imp. Hacking Suite severed. 08263_ Acquired Chainsword. 08267_ Dropped Exp. Power Amplifier. 08268_ Acquired Lrn. Terrain Scanner. 08271_ Dropped Chainsword. 08272_ Slug penetrates Wall. 08273_ Acquired Powered Hammer. 08273_ Slug penetrates Wall. 08273_ Penetrated by Slug. 08276_ Slug penetrates Wall. 08277_ Penetrated by Slug. 08277_ Slug penetrates Wall. 08288_ P-80 Master resets Y-72 Warden, system corruption cleaned. 08290_ Penetrated by Slug. Map ----- +----------------------------------------------------+ | #######/################# #??????????? | | #??????????? | | #??????????? | | #??????????? | | #######+####+#########+######??????????? | | ### ## / #? ????? ??????????????? | | ??### ##"" ## #??# #????????????? | | ????# #### ## #??# #????????????? | | ????# #??# ! ## #??# !!#????????????? | | ????# #??# ## #??# !!#????????????? | | ????# #??# ## ! #??# #????????????? | | ????# #??################??########????????????? | | ????# #????????????????????????????????????????? | | ????# #????????????????????????????????????????? | | ????# #????????????????????????????????????????? | | ???## ##????????#######????????????????????????? | | ???# ########## #????????????????????????? | | ???# #????????????????????????? | | ???+ " #????????????????????????? | | ???# #????????????????????????? | | ???# ! #######+## #????????????????????????? | | ???### ###????? ### ###????????????????????????? | | ?????# ???????? [ ??# ####???????????????????????? | | ?????# ??????? #?# #???????????????????????? | | ?????# ??????? #?####+#########???????????????? | | ?????# ?????? #????# @ #????????????? | | ?????# ?????? #????# h h #????????????? | | ?????# ????? #????# R #????????????? | | ?????? ????? #????#! """ """ #????????????? | | ??????????? """ #????# """ """ ?#????????????? | | ??????????? """ #????# """ """???????????????? | | ??????????# ?"" #????# """ """???????????????? | | ??????????##????##?????# ""?? """???????????????? | | ???????????????????????#[ ""???""????????????????? | | ???????????????????????# "??????????????????????? | | ???????????????????????# ??????????????????????? | | ???????????????????????# ??????????????????????? | | ???????????????????????####??????????????????????? | | ?????????????????????????????????????????????????? | | ?????????????????????????????????????????????????? | | ?????????????????????????????????????????????????? | | ?????????????????????????????????????????????????? | | ?????????????????????????????????????????????????? | | ?????????????????????????????????????????????????? | | ?????????????????????????????????????????????????? | | ?????????????????????????????????????????????????? | | ?????????????????????????????????????????????????? | | ?????????????????????????????????????????????????? | | ?????????????????????????????????????????????????? | | ?????????????????????????????????????????????????? | +----------------------------------------------------+ Best States ------------- Heat Dissipation 84 Energy Generation 37 Energy Capacity 450 Matter Stores 300 Matter Capacity 300 Sight Range 22 Robot Scan Range 18 Terrain Scan Range 30 Terrain Scan Density 1210 Power Amplification 40 Corruption Containment 12 Armor Coverage 450 Weapon Shielding 66 Phase Shifting 5 Evasion (%) 65 Melee Accuracy 18 Target Analysis 6 Recoil Reduction 4 Matter Filtering 50 Offensive Hacking 22 Defensive Hacking 10 Item Schematics ----------------- None Robot Schematics ------------------ None Fabricated ------------ Enh. Hardcell Cannon | x2 | -3/Research | Preloaded Repaired ---------- Heat Sink | 80% | -10/Materials Studied --------- None Alien Tech Used ----------------- None Achievements -------------- I Laugh At Your Crits Challenges ------------ None Game ------ Seed SuperchargedSurgeBotcube Manual? 0 Play Time 01:52:03 Cumulative 169.1 hours Start 2026.04.01 @ 23:25:38 End 2026.04.02 @ 01:20:38 Sessions 1 Manual Loads 0 Difficulty Rogue Special Mode None Game No. 182 Rogue 180 Adventurer 2 Explorer 0 Win Type - Total 0 Types 0/0/0/0/0/0/0/0/0/0 Lore% 68 Gallery% 56 Achievement% 35 Wizard Run 0 Options --------- Layout 2 ASCII 0 Keyboard 1 Movement Numpad Keybinds 0 Fullscreen 1 Font 24/Smallcaps Map View 50x44 Zoom Use 0% Tactical HUD 1 Map Filters NONE Filters NONE Steam SD RUN: bb5421fb-d726-47b4-b72b-3a064cd4b94a